fUSD/lending_fUSD_20241123
["ID","MTS","AMOUNT","RATE_DAILY","PERIOD"]
[343094202,1732347043534,-0.09,0.00052307,15]
[343094203,1732347043645,-304.95549546,0.00052307,15]
[343094204,1732347043654,-91.20957202,0.00052392,2]
[343094205,1732347043718,-5965.98338501,0.00052392,2]
[343094206,1732347043730,-5948.05623813,0.00052392,2]
[343094207,1732347043769,-812.57828057,0.00052392,2]
[343094208,1732347043780,-3255.87292269,0.00052392,2]
[343094213,1732347046509,-47.80485698,0.00052392,2]
[343094214,1732347046520,-2142.1114668,0.00052392,2]
[343094215,1732347046530,-1952.11179269,0.00052392,120]
[343094216,1732347046541,-978.68224361,0.00052392,120]
[343094217,1732347046725,-491.215,0.00052392,120]
[343094220,1732347075922,23158.0,0.0005,30]
[343094221,1732347135320,-37934.2973,0.00052292,2]
[343094222,1732347135347,-2500.0,0.00052307,2]
[343094223,1732347135374,-456.09566772,0.00052307,2]
[343094224,1732347135401,-170.06948319,0.00052307,48]
[343094225,1732347135434,-500.0,0.00054794,120]
[343094226,1732347135462,-257.86824853,0.00054794,120]
[343094227,1732347135489,-500.0,0.00054794,120]
[343094228,1732347135516,-500.0,0.00054794,120]
[343094229,1732347135542,-500.0,0.00054794,120]
[343094230,1732347135568,-500.0,0.00054794,120]
[343094231,1732347135595,-543.68924634,0.00054794,120]
[343094232,1732347135625,-500.0,0.00054794,120]
[343094233,1732347135653,-500.0,0.00054794,120]
[343094234,1732347135682,-338.7,0.00054794,120]
[343094235,1732347135708,-500.0,0.00054794,120]
[343094236,1732347135735,-500.0,0.00054794,120]
[343094237,1732347135761,-500.0,0.00054794,120]
[343094238,1732347135788,-500.0,0.00054794,120]
[343094239,1732347135814,-500.0,0.00054794,120]
[343094240,1732347135840,-500.0,0.00054794,120]
[343094241,1732347135869,-500.0,0.00054794,120]
[343094242,1732347135895,-500.0,0.00054794,120]
[343094243,1732347135923,-500.0,0.00054794,120]
[343094244,1732347136167,-500.0,0.00054794,120]
[343094245,1732347136199,-500.0,0.00054794,120]
[343094246,1732347136228,-500.0,0.00054794,120]
[343094247,1732347136256,-500.0,0.00054794,120]
[343094248,1732347136285,-500.0,0.00054794,120]
[343094249,1732347136314,-615.89373091,0.00054794,120]
[343094250,1732347136343,-344.03592917,0.00054794,120]
[343094251,1732347136371,-500.0,0.00054795,120]
[343094252,1732347136399,-300.0,0.00055,7]
[343094253,1732347136425,-300.0,0.00055,7]
[343094254,1732347136455,-300.0,0.00055,7]
[343094255,1732347136486,-300.0,0.00055,7]
[343094256,1732347136512,-300.0,0.00055,7]
[343094257,1732347136548,-300.43458934,0.00055,7]
[343094258,1732347136581,-242.39,0.00055005,30]
[343094259,1732347136611,-250.0,0.00055123,120]
[343094260,1732347136640,-31.83721621,0.00055137,15]
[343094261,1732347136669,-305.04549545,0.0005514,15]
[343094262,1732347136700,-500.0,0.00055556,2]
[343094263,1732347136728,-63823.562626,0.00055971,120]
[343094264,1732347136759,-150.48,0.00056111,120]
[343094265,1732347136788,-195.83,0.00056237,120]
[343094266,1732347136819,-500.0,0.00056314,15]
[343094267,1732347136848,-747.61,0.00056371,2]
[343094268,1732347136880,-23900.0,0.00056473,2]
[343094269,1732347136913,-353392.16046714,0.00056806,120]
[343094270,1732347139705,-100000.0,0.00052307,2]
[343094271,1732347139738,-400000.0,0.00056806,120]
[343094272,1732347142374,-500000.0,0.00056806,120]
[343094273,1732347143720,-506.64541891,0.00056314,15]
[343094274,1732347143753,-44656.79209486,0.00056806,120]
[343094275,1732347143783,-1000.0,0.00056862,15]
[343094276,1732347143813,-1000.0,0.000569,7]
[343094277,1732347143842,-1000.0,0.000569,7]
[343094278,1732347143872,-1000.0,0.000569,7]
[343094279,1732347143901,-1000.0,0.000569,7]
[343094280,1732347143932,-1000.0,0.000569,7]
[343094281,1732347143960,-1000.0,0.000569,7]
[343094282,1732347143995,-1000.0,0.000569,7]
[343094283,1732347144032,-500.0,0.00056903,2]
[343094284,1732347144062,-654.1522,0.00056903,2]
[343094285,1732347144092,-445682.41028623,0.00056903,2]
[343094286,1732347146161,-1548.0,0.000569,7]
[343094287,1732347146191,-272323.25171377,0.00056903,2]
[343094288,1732347146221,-1000.0,0.00056903,2]
[343094289,1732347146249,-208.6802,0.00056903,2]
[343094290,1732347146278,-500.0,0.00056973,2]
[343094291,1732347146306,-500.0,0.00056999,120]
[343094292,1732347146334,-500.0,0.00056999,120]
[343094293,1732347146362,-500.0,0.00056999,120]
[343094294,1732347146391,-42894.47176187,0.00057,120]
[343094295,1732347146419,-500.41242718,0.00057001,120]
[343094296,1732347146448,-500.0,0.00057001,120]
[343094297,1732347146484,-500.0,0.00057001,120]
[343094298,1732347146516,-500.0,0.00057001,120]
[343094299,1732347146545,-500.0,0.00057001,120]
[343094300,1732347146573,-500.0,0.00057001,120]
[343094301,1732347146603,-532.873089,0.00057001,120]
[343094302,1732347146633,-176492.31080818,0.00057003,120]
[343094303,1732347149008,-149245.8837817,0.00057003,120]
[343094304,1732347149048,-477.1519,0.00057003,82]
[343094305,1732347149081,-5416.9946791,0.00057034,2]
[343094306,1732347149110,-4104.6009873,0.00057034,2]
[343094307,1732347149318,-500.00000079,0.00057034,2]
[343094308,1732347149347,-503.44562756,0.00057073,15]
[343094309,1732347149376,-432.27855768,0.00057073,7]
[343094310,1732347149403,-790.55,0.000571,60]
[343094311,1732347149433,-634.06,0.000571,60]
[343094312,1732347149462,-228.25,0.00057178,2]
[343094313,1732347149493,-250.0,0.00057254,120]
[343094314,1732347149523,-200.0,0.00057258,2]
[343094315,1732347149552,-477.1519,0.000574,84]
[343094316,1732347149585,-1000.0,0.00057521,2]
[343094317,1732347149614,-600.0,0.00057534,120]
[343094318,1732347149641,-569.0483766,0.00057534,120]
[343094319,1732347149670,-1500.0,0.00057864,15]
[343094320,1732347149697,-220.0,0.000579,2]
[343094321,1732347149730,-433.48,0.00057945,60]
[343094322,1732347149760,-305.04549545,0.00057972,15]
[343094323,1732347149790,-313.29007051,0.00057973,14]
[343094324,1732347149821,-688.21027839,0.00057983,15]
[343094325,1732347149851,-200.0,0.00058,120]
[343094326,1732347149881,-330910.55834492,0.00058,120]
[343094327,1732347152367,-169089.44165508,0.00058,120]
[343094328,1732347152398,-9411.94160404,0.00058,120]
[343094329,1732347152426,-50000.0,0.00058,32]
[343094330,1732347152461,-274.46106718,0.00058,120]
[343094331,1732347152492,-2779.29432561,0.00058,2]
[343094332,1732347152526,-171.63015164,0.00058239,37]
[343094333,1732347152557,-163.72,0.0005824,2]
[343094334,1732347152584,-364.95994,0.00058522,2]
[343094335,1732347152614,-150.906,0.00058626,120]
[343094336,1732347152642,-747.61,0.00058635,2]
[343094337,1732347152671,-477.15191,0.0005865,90]
[343094338,1732347152697,-168.56157202,0.0005875,37]
[343094339,1732347152726,-150.0,0.00058766,60]
[343094340,1732347152755,-433.75,0.00058766,60]
[343094341,1732347152782,-150.0,0.00058766,60]
[343094342,1732347152810,-362.86,0.00058766,60]
[343094343,1732347152838,-150.0,0.00058766,60]
[343094344,1732347152865,-327.44,0.00058766,60]
[343094345,1732347152896,-150.0,0.00058766,60]
[343094346,1732347152933,-150.0,0.00058766,60]
[343094347,1732347152963,-433.75,0.00058766,60]
[343094348,1732347152990,-362.86,0.00058766,60]
[343094349,1732347153019,-150.0,0.00058766,60]
[343094350,1732347153046,-150.0,0.00058766,60]
[343094351,1732347153076,-362.86,0.00058766,60]
[343094352,1732347153105,-433.75,0.00058766,60]
[343094353,1732347153135,-150.0,0.00058766,60]
[343094354,1732347153165,-150.0,0.00058766,60]
[343094355,1732347153195,-362.86,0.00058766,60]
[343094356,1732347153227,-433.75,0.00058766,60]
[343094357,1732347153265,-432.9,0.00058766,60]
[343094358,1732347153295,-357.15,0.00058766,60]
[343094359,1732347153324,-932.0,0.0005883,3]
[343094360,1732347153353,-1000.0,0.00058849,30]
[343094361,1732347153383,-258614.39177443,0.0005885,120]
[343094362,1732347155321,-500000.0,0.0005885,120]
[343094363,1732347156741,-104701.89079897,0.0005885,120]
[343094364,1732347156770,-151.0,0.0005885,120]
[343094365,1732347156799,-151.0,0.0005885,120]
[343094366,1732347156830,-151.0,0.0005885,120]
[343094367,1732347156859,-151.0,0.0005885,120]
[343094368,1732347156889,-151.0,0.0005885,120]
[343094369,1732347156917,-376.155,0.0005885,7]
[343094370,1732347156946,-376.155,0.0005885,7]
[343094371,1732347156975,-1402.31183033,0.0005888,2]
[343094372,1732347157010,-849.4,0.00058903,60]
[343094373,1732347157039,-94343.5707747,0.00058904,120]
[343094374,1732347157066,-18703.0,0.00058933,3]
[343094375,1732347157097,-1073.0,0.00058934,3]
[343094376,1732347157126,-10423.0,0.00058942,3]
[343094377,1732347157159,-160.58548329,0.00059,60]
[343094378,1732347157190,-50000.0,0.00059,35]
[343094379,1732347157219,-1012.73875006,0.00059,2]
[343094380,1732347161814,151.0,0.0005885,120]
[343094381,1732347164210,151.0,0.0005885,120]
[343094382,1732347167702,151.0,0.0005885,120]
[343094383,1732347169073,806.861575,0.0005885,120]
[343094384,1732347169680,328.27875177,0.00052307,2]
[343094385,1732347172885,806.861575,0.0005885,120]
[343094386,1732347173255,188.966696,0.0005885,120]
[343094387,1732347175212,185722.4952,0.00052307,2]
[343094388,1732347185089,150.0,0.00056,120]
[343094389,1732347185251,165.13486885,0.00056274,120]
[343094390,1732347193632,400.18375068,0.00052307,24]
[343094391,1732347196799,981.08,0.00052107,7]
[343094392,1732347196940,1124.53662,0.00058904,91]
[343094393,1732347197785,500.0,0.00054794,120]
[343094394,1732347202108,553.0,0.000579,3]
[343094395,1732347202360,151.99147382,0.00058968,14]
[343094396,1732347204479,158.0,0.00056867,25]
[343094397,1732347208399,198.45,0.00052107,7]
[343094398,1732347209521,1522.0,0.00051883,30]
[343094399,1732347212631,217.842405,0.0005885,120]
[343094400,1732347216399,217.842405,0.0005885,120]
[343094401,1732347226967,151.0,0.0005885,120]
[343094402,1732347229832,500.0,0.00052307,2]
[343094403,1732347230120,1000.0,0.000589,7]
[343094404,1732347230180,1000.0,0.000589,7]
[343094405,1732347231750,304.06377848,0.00052307,2]
[343094406,1732347242034,37934.2973,0.00052307,2]
[343094407,1732347242387,220.0,0.00052307,2]
[343094408,1732347260324,738.57595,0.00058904,91]
[343094409,1732347267800,100000.0,0.00052307,2]
[343094410,1732347286800,500.0,0.00054794,120]
[343094411,1732347290638,150.5,0.00052397,7]
[343094412,1732347291118,150.5,0.00052387,7]
[343094413,1732347291621,209.04,0.00052377,7]
[343094414,1732347292155,1000.0,0.00052307,2]
[343094415,1732347303115,937.11385,0.00058904,91]
[343094416,1732347304111,500.0,0.0005719,14]
[343094417,1732347304518,2500.0,0.00052307,2]
[343094418,1732347304977,328.27875175,0.00052307,2]
[343094419,1732347315243,182.76605264,0.00059,2]
[343094420,1732347316374,1544.0,0.00056986,15]
[343094421,1732347322822,500.0,0.00054794,120]
[343094422,1732347329763,500.0,0.00054794,120]
[343094423,1732347337528,500.0,0.00054794,120]
[343094424,1732347345883,615.47996,0.00058904,91]
[343094425,1732347359531,95977.97601337,0.000569,2]
[343094426,1732347362728,11354.7388,0.00052307,2]
[343094427,1732347363910,-12852.85520936,0.00052407,120]
[343094428,1732347363940,-3352.52951426,0.00052407,120]
[343094429,1732347363968,-3496.40959132,0.00052407,120]
[343094430,1732347363994,-4733.67769637,0.00052407,120]
[343094431,1732347364026,-9649.90712712,0.00052407,120]
[343094432,1732347364051,-14163.63316023,0.00052407,120]
[343094433,1732347364077,-8069.54480897,0.00052407,120]
[343094434,1732347364100,-23873.64243114,0.00052407,120]
[343094435,1732347364128,-6101.15926029,0.00052407,120]
[343094436,1732347364156,-13706.64120094,0.00052407,120]
[343094437,1732347366787,202.70918564,0.00052307,2]
[343094438,1732347367534,481.7471949,0.00052307,15]
[343094439,1732347368254,250.0,0.00058847,120]
[343094440,1732347372547,481.74719487,0.00055151,15]
[343094441,1732347373286,1000.0,0.00058847,120]
[343094442,1732347377538,481.74719487,0.00057994,15]
[343094443,1732347381939,500.0,0.00052307,2]
[343094444,1732347384414,167.52,0.00058847,2]
[343094445,1732347386630,-15485.71002288,0.00052407,120]
[343094446,1732347386656,-3680.51848998,0.00052407,120]
[343094447,1732347386683,-4118.83540061,0.00052407,120]
[343094448,1732347386707,-11783.09322068,0.00052407,120]
[343094449,1732347386731,-8162.53376996,0.00052407,120]
[343094450,1732347386764,-11720.82112116,0.00052407,120]
[343094451,1732347386791,-4759.62939382,0.00052407,120]
[343094452,1732347386815,-3441.5764012,0.00052407,120]
[343094453,1732347386839,-5016.37749617,0.00052407,120]
[343094454,1732347386862,-4201.20383064,0.00052407,120]
[343094455,1732347386885,-3084.46148803,0.00052407,120]
[343094456,1732347386908,-10000.0,0.00052407,120]
[343094458,1732347388655,780.92821,0.00058904,91]
[343094459,1732347399203,2921.8072,0.00052307,2]
[343094460,1732347410793,16689.46587121,0.0005515,120]
[343094461,1732347412097,1020.1930311,0.00052307,15]
[343094462,1732347413666,21228.27914005,0.00059,2]
[343094463,1732347436189,-100000.0,0.00052307,2]
[343094464,1732347436221,-328.27875175,0.00052307,2]
[343094465,1732347448099,250.0,0.00031,2]
[343094466,1732347449194,150.0,0.00033,2]
[343094467,1732347449225,150.0,0.00033,2]
[343094479,1732347674106,585.0,0.000354,3]
[343094480,1732347691853,-8464.90332284,0.00052417,7]
[343094481,1732347691878,-3894.74500249,0.00052417,30]
[343094482,1732347691903,-4028512.79236782,0.00052417,4]
[343094483,1732347691928,-189.09276506,0.00052417,30]
[343094484,1732347691953,-161483.68806254,0.00052417,7]
[343094485,1732347691979,-13038.21044195,0.00052417,5]
[343094486,1732347692002,-20060.42274418,0.00052417,7]
[343094487,1732347692027,-10092.67039106,0.00052417,7]
[343094488,1732347692057,-181.94917442,0.00052417,30]
[343094489,1732347692081,-5113.80805263,0.00052417,4]
[343094490,1732347692103,-4194.12304581,0.00052417,5]
[343094491,1732347692128,-1399.36252459,0.00052417,30]
[343094492,1732347692151,-579.30908842,0.00052417,30]
[343094493,1732347692174,-10000.0,0.00052417,120]
[343094495,1732347901739,150.0,0.00034548,10]
[343094496,1732347958987,-2926.0,0.0005,10]
[343094497,1732347959023,-204.9922337,0.000519,120]
[343094498,1732347959053,-2000.0,0.00052,4]
[343094499,1732347959084,-700.0,0.00052206,15]
[343094500,1732347959117,-1000.0,0.00052206,9]
[343094501,1732347959153,-514.0,0.00052206,9]
[343094502,1732347959184,-350.0,0.00052206,90]
[343094503,1732347959217,-26182.6208,0.00052207,2]
[343094504,1732347959248,-3931.1536,0.00052207,2]
[343094505,1732347959279,-2023.1811,0.00052207,2]
[343094506,1732347959310,-1477.9919,0.00052207,2]
[343094507,1732347959342,-2500.0,0.00052207,2]
[343094508,1732347959376,-3313.72868789,0.00052207,15]
[343094509,1732347959410,-1446.23909493,0.00052207,15]
[343094510,1732347959443,-332.76717605,0.00052217,2]
[343094511,1732347959477,-447.2577,0.000523,2]
[343094512,1732347959510,-210.0,0.00052307,2]
[343094513,1732347959543,-1000.0,0.00052307,2]
[343094514,1732347959575,-998.6842,0.00052307,2]
[343094515,1732347959607,-1819.4049,0.00052307,2]
[343094516,1732347959638,-500.0,0.00052307,2]
[343094517,1732347959671,-19763.5069,0.00052307,2]
[343094518,1732347959704,-1589.3718,0.00052307,2]
[343094519,1732347959737,-8603.0961,0.00052307,2]
[343094520,1732347959770,-100000.0,0.00052307,2]
[343094521,1732347959802,-309.4567,0.00052307,2]
[343094522,1732347959834,-821.7738,0.00052307,2]
[343094523,1732347959867,-70290.7559,0.00052307,2]
[343094524,1732347960143,-1000.0,0.00052307,2]
[343094525,1732347960191,-416.1147,0.00052307,2]
[343094526,1732347960223,-2084.5021,0.00052307,2]
[343094527,1732347960254,-263.8556,0.00052307,2]
[343094528,1732347960283,-510.9471,0.00052307,2]
[343094529,1732347960314,-3764.0704,0.00052307,2]
[343094530,1732347960344,-11264.5197,0.00052317,2]
[343094531,1732347960374,-2826.2057,0.00052317,2]
[343094532,1732347960405,-12337.4169,0.00052317,2]
[343094533,1732347960433,-217.2932,0.00052317,2]
[343094534,1732347960464,-210059.09200743,0.00052317,2]
[343094538,1732348008478,-100000.0,0.00052317,2]
[343094539,1732348035128,-163.0,0.00052206,15]
[343094540,1732348035153,-229.88956842,0.00052207,2]
[343094541,1732348036134,-12611.20503158,0.00052207,2]
[343094542,1732348036159,-500.0,0.00052207,2]
[343094543,1732348036179,-150.0,0.00052207,2]
[343094544,1732348036201,-6581.98495359,0.00052317,2]
[343094545,1732348058843,-1000.0,0.00052207,2]
[343094546,1732348058875,-99000.0,0.00052314,2]
[343094547,1732348077900,150.0,0.00041096,2]
[343094548,1732348077927,10.95,0.00041096,2]
[343094550,1732348148109,-160.95,0.00046143,2]
[343094551,1732348167114,-500.0,0.0005,120]
[343094552,1732348167141,-150.0,0.0005,120]
[343094553,1732348167173,-160.95,0.0005119,2]
[343094565,1732348231612,-6259.5975676,0.000518,120]
[343094588,1732348236209,-916.17635179,0.000518,120]
[343094589,1732348236223,-4384.22608061,0.000518,120]
[343094590,1732348236232,-867.8783,0.00052207,2]
[343094591,1732348236241,-500.0,0.00052207,2]
[343094592,1732348236251,-1000.0,0.00052207,2]
[343094593,1732348236260,-2500.0,0.00052207,2]
[343094594,1732348236269,-2982.35581911,0.00052312,15]
[343094595,1732348236279,-1000.0,0.00052314,2]
[343094596,1732348236288,-28299.36993343,0.00052317,2]
[343094597,1732348236300,-1181.32532351,0.00052317,2]
[343094599,1732348237581,-4456.20425058,0.00052317,2]
[343094600,1732348237593,-2724.56352432,0.00052317,2]
[343094601,1732348237604,-336.64334195,0.00052317,2]
[343094602,1732348237616,-566.76354058,0.00052317,2]
[343094603,1732348237626,-1505.995395,0.00052317,2]
[343094604,1732348237638,-1576.16292961,0.00052317,2]
[343094605,1732348237647,-111.47805039,0.00052317,2]
[343094606,1732348237660,-218.61134961,0.00052317,2]
[343094607,1732348237669,-1315.03323039,0.00052317,2]
[343094608,1732348237733,-5426.00911855,0.00052317,2]
[343094609,1732348237747,-10.99935106,0.00052317,2]
[343094610,1732348237756,-171.9,0.0005238,2]
[343094611,1732348237766,-300.0,0.00052406,30]
[343094612,1732348237775,-645.90153655,0.00052406,96]
[343094613,1732348237791,-1016.36046345,0.00052406,96]
[343094614,1732348237800,-168.061,0.00052406,96]
[343094615,1732348237811,-225.95275981,0.00052412,2]
[343094616,1732348237820,-8045.20885087,0.00052412,2]
[343094617,1732348237831,-540.65357155,0.00052412,2]
[343094618,1732348237842,-264.24,0.00052412,2]
[343094619,1732348237853,-352.6,0.00052412,2]
[343094620,1732348237864,-4392.91305409,0.00052412,2]
[343094621,1732348237875,-478.31959918,0.00052412,2]
[343094622,1732348237886,-2204.92451438,0.00052412,2]
[343094623,1732348237957,-358.33485164,0.00052412,2]
[343094666,1732348239564,-1528.19228209,0.00052412,2]
[343094668,1732348239576,-358.24864725,0.00052412,2]
[343094672,1732348239649,-600.44499954,0.00052412,2]
[343094673,1732348239662,-668.235384,0.00052412,2]
[343094674,1732348239675,-1215.30143182,0.00052412,2]
[343094675,1732348239685,-3668.56928049,0.00052412,2]
[343094676,1732348239724,-388.8658327,0.00052412,2]
[343094677,1732348239736,-741.329995,0.00052412,2]
[343094678,1732348239748,-931.0999,0.00052412,2]
[343094679,1732348239796,-791.9750723,0.00052412,2]
[343094685,1732348242537,-937.63961002,0.00052412,2]
[343094703,1732348242685,-4344.24631465,0.00052412,2]
[343094705,1732348242696,-2285.82171714,0.00052412,2]
[343094710,1732348242737,-12581.83815854,0.00052412,2]
[343094712,1732348242748,-330.5,0.00052412,2]
[343094748,1732348243509,-3004.72245646,0.00052412,2]
[343094749,1732348243520,-3073.3242284,0.00052412,2]
[343094750,1732348243556,-2549.24474444,0.00052412,2]
[343094755,1732348245836,-774.91,0.00052402,10]
[343094756,1732348245846,-1480.74567073,0.00052412,2]
[343094757,1732348245871,-31129.75066937,0.00052412,2]
[343094758,1732348245881,-2121.1341078,0.00052412,2]
[343094759,1732348245891,-9534.59531192,0.00052412,2]
[343094760,1732348245900,-3950.42973078,0.00052412,2]
[343094761,1732348245910,-3632.75642618,0.00052412,2]
[343094762,1732348245922,-1002.20792297,0.00052412,2]
[343094763,1732348245932,-5523.81718227,0.00052412,2]
[343094764,1732348245942,-361.64806447,0.00052412,2]
[343094765,1732348245951,-10000.0,0.00052412,120]
[343094766,1732348245961,-561.70266458,0.00052414,2]
[343094767,1732348245972,-4913.66319327,0.00052414,2]
[343094768,1732348246027,-2204.79862112,0.00052414,2]
[343094769,1732348246038,-2798.61552103,0.00052414,2]
[343094770,1732348246048,-329.75,0.00052414,2]
[343094771,1732348246058,-963.37802745,0.00052416,11]
[343094772,1732348246067,-179.77156071,0.00052417,30]
[343094773,1732348246077,-704.21,0.00052417,10]
[343094774,1732348246087,-7125.78,0.00052417,2]
[343094775,1732348246097,-150.99,0.00052417,2]
[343094776,1732348246107,-9999.99,0.00052417,2]
[343094777,1732348246118,-3328.28,0.00052539,2]
[343094778,1732348246127,-250.0,0.0005258,120]
[343094779,1732348246137,-168.5,0.00052699,2]
[343094780,1732348246147,-182.75,0.00052781,120]
[343094781,1732348246156,-356.74,0.00052793,120]
[343094782,1732348246168,-166.89,0.00052909,2]
[343094783,1732348246178,-354.17,0.00053147,2]
[343094784,1732348246187,-248.0,0.00053158,2]
[343094785,1732348246197,-168.5,0.00053162,2]
[343094786,1732348246206,-188.77,0.00053605,2]
[343094787,1732348246218,-250.0,0.00053639,120]
[343094788,1732348246227,-1000.0,0.00053822,120]
[343094789,1732348246236,-159.17,0.00054475,120]
[343094790,1732348246247,-17708.0,0.00054519,3]
[343094791,1732348246256,-500.0,0.0005458,2]
[343094792,1732348246265,-1293.69,0.00054613,2]
[343094793,1732348246274,-510.10718405,0.00054773,10]
[343094794,1732348246284,-500.0,0.00054773,7]
[343094795,1732348246293,-530.59764409,0.00054794,120]
[343094796,1732348246303,-500.0,0.00054794,120]
[343094797,1732348246313,-500.0,0.00054794,120]
[343094798,1732348246323,-515.09862747,0.00054794,120]
[343094799,1732348246332,-502.94616412,0.00054794,120]
[343094800,1732348246345,-500.0,0.00054794,120]
[343094801,1732348246359,-500.0,0.00054794,120]
[343094802,1732348246372,-506.94545077,0.00054794,120]
[343094803,1732348246384,-504.84903135,0.00054794,120]
[343094804,1732348246396,-568.39967781,0.00054794,120]
[343094805,1732348246408,-500.0,0.00054794,120]
[343094806,1732348246423,-518.04250402,0.00054794,120]
[343094807,1732348246436,-500.0,0.00054794,120]
[343094808,1732348246449,-519.06023408,0.00054794,120]
[343094809,1732348246463,-500.0,0.00054794,120]
[343094810,1732348246477,-504.0053668,0.00054794,120]
[343094811,1732348246489,-500.0,0.00054794,120]
[343094812,1732348246502,-505.01084019,0.00054794,120]
[343094813,1732348246513,-500.0,0.00054794,120]
[343094814,1732348246526,-508.62373103,0.00054794,120]
[343094815,1732348246538,-500.0,0.00054794,120]
[343094816,1732348246551,-520.19236455,0.00054794,120]
[343094817,1732348246564,-500.0,0.00054794,120]
[343094818,1732348246576,-504.39135798,0.00054794,120]
[343094819,1732348246590,-500.0,0.00054794,120]
[343094820,1732348246603,-436.61691122,0.00054794,120]
[343094821,1732348246616,-505.1562747,0.00054794,120]
[343094822,1732348246629,-500.0,0.00054794,120]
[343094823,1732348246643,-517.44449746,0.00054794,120]
[343094824,1732348246655,-505.0808482,0.00054794,120]
[343094825,1732348246669,-468.34977451,0.00054794,120]
[343094826,1732348246682,-459.99591269,0.00054794,120]
[343094827,1732348246693,-515.73623931,0.00054794,120]
[343094828,1732348246705,-500.0,0.00054794,120]
[343094829,1732348246717,-514.70890005,0.00054794,120]
[343094830,1732348246731,-521.9626991,0.00054794,120]
[343094831,1732348246744,-491.2998949,0.00054794,120]
[343094832,1732348246755,-529.94105237,0.00054794,120]
[343094833,1732348246766,-150.0,0.00054794,120]
[343094834,1732348246777,-590.98,0.00054794,120]
[343094835,1732348246788,-590.98,0.00054794,120]
[343094836,1732348246803,-590.98,0.00054794,120]
[343094837,1732348246815,-590.98,0.00054794,120]
[343094838,1732348246827,-590.98,0.00054794,120]
[343094839,1732348246837,-590.98,0.00054794,120]
[343094840,1732348246847,-590.98,0.00054794,120]
[343094841,1732348246859,-590.98,0.00054794,120]
[343094842,1732348246871,-590.98,0.00054794,120]
[343094843,1732348246886,-590.98,0.00054794,120]
[343094844,1732348246897,-590.98,0.00054794,120]
[343094845,1732348246908,-590.98,0.00054794,120]
[343094846,1732348246920,-590.98,0.00054794,120]
[343094847,1732348246931,-590.98,0.00054794,120]
[343094848,1732348246943,-590.98,0.00054794,120]
[343094849,1732348246954,-590.98,0.00054794,120]
[343094850,1732348246967,-590.98,0.00054794,120]
[343094851,1732348246979,-590.98,0.00054794,120]
[343094852,1732348246989,-368.89843184,0.00054794,120]
[343094853,1732348247001,-500.0,0.00054794,120]
[343094854,1732348247012,-500.0,0.00054794,120]
[343094855,1732348247023,-500.0,0.00054794,120]
[343094856,1732348247035,-500.0,0.00054794,120]
[343094857,1732348247048,-500.0,0.00054794,120]
[343094858,1732348247059,-500.0,0.00054794,120]
[343094859,1732348247071,-500.0,0.00054794,120]
[343094860,1732348247082,-500.0,0.00054794,120]
[343094861,1732348247093,-500.0,0.00054794,120]
[343094862,1732348247105,-500.0,0.00054794,120]
[343094863,1732348247116,-500.0,0.00054794,120]
[343094864,1732348247128,-500.0,0.00054794,120]
[343094865,1732348247139,-500.0,0.00054794,120]
[343094866,1732348247151,-500.0,0.00054794,120]
[343094867,1732348247163,-500.0,0.00054794,120]
[343094868,1732348247177,-500.0,0.00054794,120]
[343094869,1732348247188,-500.0,0.00054794,120]
[343094870,1732348247200,-498.44,0.00054794,120]
[343094871,1732348247214,-500.0,0.00054794,120]